Cogmind - Beta 16 @@@ ROGUE MODE // 2025.10.29 @ 07:34:11 Player: Cereal Killer Result: Destroyed by G-47 Trooper with Particle Gun Performance ------------- Evolutions (2) 1000 Regions Visited (4) 800 Robots Destroyed (62) 310 Value Destroyed (1548) 1548 Prototype IDs (12) 240 Alien Tech Used (0) 0 Bonus (11) 11 TOTAL SCORE: 3909 Bonus ------- High Alert Combat Kills 11 Cogmind --------- Core Integrity 0/550 Matter 69/300 Energy 97/100 System Corruption 0% Temperature Cool (9) Movement Core (50) Location -8/Materials Parts ------- > --- POWER (1) -------- (None) > --- PROPULSION (2) --- (None) > --- UTILITY (5) ------ (None) > --- WEAPON (3) ------- (None) > --- INVENTORY (5) ---- Subdweller Power Source Subdweller Power Source Subdweller Power Source Small Storage Unit Beam Rifle Peak State ------------ > --- POWER ------------ Light Nuclear Core > --- PROPULSION ------- Wheel Wheel > --- UTILITY ---------- Heat Sink Improved Heat Sink Huge Storage Unit Transport Network Coupler Hacking Suite > --- WEAPON ----------- EM Pulse Cannon High-powered Shotgun Heavy Battle Rifle > --- INVENTORY -------- Ion Engine Subdweller Power Source Subdweller Power Source Subdweller Power Source Light Nuclear Core Light Treads Wheel Subdweller Monowheel Subdweller Monowheel Subdweller Monowheel Disposable Heat Sink Disposable Heat Sink Small Storage Unit Weight Redist. System Subdweller Optics Subdweller Optics High-powered Tractor Beam EM Pulse Gun Beam Rifle Beam Rifle EM Pulse Cannon Autogun Battle Cannon [Rating: 28] Favorites ----------- Power Light Ion Engine Engine Light Ion Engine Power Core Light Nuclear Core Propulsion Wheel Treads Light Treads Wheel Wheel Utility Huge Storage Unit Device Heat Sink Storage Huge Storage Unit Processor Transport Network Coupler Hackware Hacking Suite Weapon Autogun Energy Gun Medium Laser Energy Cannon Subdweller Beam Cannon Ballistic Gun Autogun Ballistic Cannon Battle Cannon Launcher Rocket Launcher Build | -11 -10 -10 -10 -8 ------- Run | Yrd Mat Min Sub Mat Slots Evolved 4 | . . . . 4 Power . | . . . . . Propulsion . | . . . . . Utility 3 | . . . . 3 Weapon 1 | . . . . 1 Parts Attached 41 | 6 9 2 9 15 Power 5 | 1 1 . 1 2 Engine 3 | 1 1 . 1 . Core 2 | . . . . 2 Reactor . | . . . . . Propulsion 10 | 2 2 . 4 2 Treads 1 | . 1 . . . Leg . | . . . . . Wheel 9 | 2 1 . 4 2 Hover . | . . . . . Flight . | . . . . . Utility 12 | 1 3 1 . 7 Device 7 | . 1 1 . 5 Storage 2 | 1 1 . . . Processor 2 | . 1 . . 1 Hackware 1 | . . . . 1 Protection . | . . . . . Artifact . | . . . . . Weapon 14 | 2 3 1 4 4 Energy Gun 3 | 2 . . 1 . Energy Cannon 2 | . . . 1 1 Ballistic Gun 6 | . 2 . 1 3 Ballistic Cannon 1 | . . . 1 . Launcher 2 | . 1 1 . . Special Weapon . | . . . . . Impact Weapon . | . . . . . Slashing Weapon . | . . . . . Piercing Weapon . | . . . . . Special Melee Weapon . | . . . . . Unidentified Prototypes . | . . . . . Parts Lost 20 | . 4 . 3 13 Power 4 | . 1 . 1 2 Propulsion 6 | . 1 . 2 3 Utility 5 | . 2 . . 3 Weapon 5 | . . . . 5 Highest Loss Streak 8 | . 3 . 2 8 To Critical Strikes . | . . . . . Average Backups 19 | 3 9 20 24 22 Power 1 | . . 1 2 3 Propulsion 5 | 1 2 4 7 6 Utility 4 | . 1 4 6 6 Weapon 7 | . 4 10 9 6 Tool/Special . | . . . . . Unused Backups 18 | . . . 5 13 Power 3 | . . . . 3 Propulsion 5 | . . . 2 3 Utility 5 | . . . 1 4 Weapon 5 | . . . 2 3 Tool/Special . | . . . . . Average Slot Usage (%) 89 | . 86 85 95 84 Engine 10 | . 12 14 11 4 Wheel 23 | . 25 28 25 14 Device 8 | . 2 . 14 14 Storage 13 | . 14 14 14 8 Processor 1 | . . . . 6 Hackware 1 | . . . . 6 Energy Gun 4 | . 17 . . . Ballistic Gun 16 | . 7 27 15 18 Ballistic Cannon 2 | . . . 2 5 Launcher 3 | . 2 . 8 . Peak Build Rating 28 | 6 10 12 16 28 Average Rating 12 | 4 7 10 13 20 On Entrance 8 | . 6 10 12 14 Avg Prop Armor Cover (%) 11 | . 11 . . . Naked Turns 19 | . . . . 19 Heaviest Build 100 | 11 91 91 98 100 Greatest Support 40 | 20 20 20 40 26 Greatest Overweight (x) 9 | . 8 4 9 9 Average Overweight (x) 3 | . 4 4 2 3 Largest Inventory Capacity 25 | 8 25 25 25 25 Average Capacity 24 | 7 24 25 25 24 Most Carried 25 | 5 19 25 25 25 Average Carried 19 | 3 9 21 24 22 Final Capacity 25 | 8 25 25 25 5 Final Carried 24 | 5 19 24 23 5 Class Distribution -------------------- 70% | Mutant 17% | Scavenger-Skirmisher 11% | Scavenger-Mutant Dominant Class ---------------- Mutant | -10/Materials Mutant | -10/Mines Mutant | -10/Subcaves Scavenger-Skirmisher | -8/Materials Resources | -11 -10 -10 -10 -8 ----------- Run | Yrd Mat Min Sub Mat Matter Collected 1283 | 195 395 126 208 359 Remotely . | . . . . . Salvage Created 1599 | . 479 310 315 495 Parts 116 | . 41 17 22 36 Haulers Intercepted 2 | . . . . 2 Recyclers Shooed 1 | . . 1 . . Parts Field Recycled . | . . . . . Retrieved Matter . | . . . . . Parts Self-Destructed 10 | . . . 10 . Prevented . | . . . . . Parts Restored . | . . . . . Kills | -11 -10 -10 -10 -8 ------- Run | Yrd Mat Min Sub Mat Combat Hostiles Destroyed 42 | . 15 2 8 17 Guns 19 | . 6 2 4 7 Cannons 3 | . . . 2 1 AOE 20 | . 9 . 2 9 Classes Destroyed 12 | . 6 1 1 4 Worker 5 | . 2 3 . . Builder 3 | . . . . 3 Tunneler 1 | . . 1 . . Hauler 2 | . . . . 2 Recycler 3 | . 1 2 . . Operator 2 | . 2 . . . Watcher 4 | . 3 . . 1 Swarmer 14 | . 6 . 1 7 Grunt 18 | . 9 2 . 7 Sentry 2 | . . . . 2 Hunter 1 | . . . . 1 Subdweller 7 | . . . 7 . Best Kill Streak 9 | . 6 4 2 9 Combat Bots Only 8 | . 3 2 2 8 Max Kills in Single Turn 4 | . 3 1 2 4 Gunslinging . | . . . . . Exploded 3 | . 2 . 1 3 Melee . | . . . . . Uniques/NPCs Destroyed . | . . . . . Combat | -11 -10 -10 -10 -8 -------- Run | Yrd Mat Min Sub Mat Hostile Shots Fired 224 | . 55 10 20 139 Missed 65 | . 16 3 3 43 Hits 159 | . 39 7 17 96 Projectile 159 | . 39 7 17 96 Critical Strikes 3 | . 2 . . 1 Damage Taken 2661 | . 413 78 492 1678 Core 778 | . 80 12 124 562 Absorbed by Shields 36 | . . . . 36 Core Remaining (%) 56 | 100 . . 13 . Volleys Fired 129 | . 39 16 37 37 Largest 3 | . 2 2 2 3 Hottest 121 | . 90 46 80 121 Shots Fired 233 | . 71 31 47 84 Gun 163 | . 57 30 16 60 Cannon 44 | . . . 22 22 Launcher 26 | . 14 1 9 2 Special . | . . . . . Kinetic 148 | . 18 30 22 78 Thermal 55 | . 39 . 16 . Explosive 26 | . 14 1 9 2 Electromagnetic 4 | . . . . 4 Robot Hit Streak 11 | . 10 10 11 11 Robot Miss Streak 3 | . 3 2 2 3 Penetration Max . | . . . . . Secondary Targets 2 | . . 1 . 1 Max Gunslinging Chain 1 | . . 1 . 1 Shots Hit Robots 137 | . 41 22 23 51 Core Hits 93 | . 34 14 11 34 Critical Kills . | . . . . . Critical Parts Destroyed . | . . . . . Critical Strikes 2 | . . . 1 1 Blast 2 | . . . 1 1 Melee Attacks . | . . . . . Impact . | . . . . . Slashing . | . . . . . Piercing . | . . . . . Sneak Attacks . | . . . . . Combat Hostiles . | . . . . . Follow-up Attacks . | . . . . . Damage Inflicted 4693 | . 1487 380 616 2210 Guns 1654 | . 459 341 182 672 Cannons 475 | . . . 168 307 Explosions 2564 | . 1028 39 266 1231 Melee . | . . . . . Ramming . | . . . . . Kinetic 1740 | . 206 341 241 952 Thermal 362 | . 253 . 109 . Explosive 2564 | . 1028 39 266 1231 Electromagnetic 27 | . . . . 27 Impact . | . . . . . Slashing . | . . . . . Piercing . | . . . . . Highest Corruption . | . . . . . Average Corruption . | . . . . . Corruption Purged . | . . . . . Corruption Blocked . | . . . . . Overload Shots . | . . . . . Overflow Damage 114 | . 18 . . 96 Projectiles . | . . . . . Explosions 114 | . 18 . . 96 Melee . | . . . . . Knockbacks 6 | . . . 1 5 Impact . | . . . . . Kinetic 6 | . . . 1 5 Secondary . | . . . . . Self-Inflicted Damage 204 | . . . . 204 Shots 4 | . . . . 4 Rammed . | . . . . . Targets Rammed . | . . . . . Kicked . | . . . . . Crushed . | . . . . . Highest Temperature 183 | . 183 25 . 56 Average Temperature 32 | . 45 8 . 15 Received Heat Transfer 771 | . 201 45 102 423 Siege Activations . | . . . . . Martial Activations . | . . . . . Shielding Activations . | . . . . . Robots Disrupted . | . . . . . Combat Hostiles . | . . . . . Robots Corrupted . | . . . . . Combat Hostiles . | . . . . . Parts Fried . | . . . . . Impact Corruptions . | . . . . . Robots Melted . | . . . . . Combat Hostiles . | . . . . . Parts Melted 2 | . 1 . 1 . Heat Transferred 829 | . 681 . 148 . Parts Sabotaged . | . . . . . Parts Stolen . | . . . . . Parts Stripped . | . . . . . Power Chain Reactions . | . . . . . Alert | -11 -10 -10 -10 -8 ------- Run | Yrd Mat Min Sub Mat Maximum Alert Level 2 | . 1 . . 2 Low Security (%) 67 | 100 30 100 . 81 Level 1 31 | . 69 . . 15 Level 2 . | . . . . 3 Level 3 . | . . . . . Level 4 . | . . . . . Level 5 . | . . . . . High Security . | . . . . . Max Security . | . . . . . Peak Influence 410 | . 285 139 . 410 Initial 104 | . . 104 . . Average 131 | . 178 76 . 137 Influence Increases 1316 | . 527 83 20 686 Destroy 0b10 Robot/C 700 | . 300 40 20 340 Destroy 0b10 Robot/NC 100 | . 40 30 . 30 Destroy Leader 162 | . 66 10 . 86 Successful Hack 15 | . 15 . . . Disable Machine 150 | . 15 . . 135 Destroy Structure 129 | . 91 3 . 35 Partial Spotted 15 | . . . . 15 Lose Combat Pursuer 45 | . . . . 45 Influence Decreases 923 | . 258 335 37 293 Entered New Map 174 | . . 165 9 . Time Decay 579 | . 218 170 28 163 Lost Part 170 | . 40 . . 130 Squads Dispatched 8 | . 3 . . 5 Investigation 3 | . 1 . . 2 Extermination . | . . . . . Reinforcement 5 | . 2 . . 3 Assault . | . . . . . Garrison . | . . . . . Intercept . | . . . . . Searches Triggered . | . . . . . Construction Impeded . | . . . . . Haulers Reinforced . | . . . . . Active Scanning Responses . | . . . . . Cargo Convoy Interrupts . | . . . . . Stealth | -11 -10 -10 -10 -8 --------- Run | Yrd Mat Min Sub Mat Distress Signals 3 | . 1 . . 2 Communications Jammed . | . . . . . Distress Signals . | . . . . . Times Spotted 62 | . 20 2 12 28 Peak Tracking Total 8 | . 5 2 3 8 Tactical Retreats 3 | . . . 1 2 Traps | -11 -10 -10 -10 -8 ------- Run | Yrd Mat Min Sub Mat Traps Triggered 4 | . 1 . 2 1 Indirectly . | . . . . . Trap Hack Attempts . | . . . . . Triggered . | . . . . . Disarmed . | . . . . . Reprogrammed . | . . . . . Reused . | . . . . . Traps Extracted . | . . . . . Installed . | . . . . . Triggered . | . . . . . Machines | -11 -10 -10 -10 -8 ---------- Run | Yrd Mat Min Sub Mat Machines Disabled 10 | . 1 . . 9 Max in Single Turn 3 | . 1 . . 3 Machines Repaired . | . . . . . Machines Dismantled . | . . . . . Machines Sabotaged . | . . . . . Overloaded Fab Kills . | . . . . . Hacking | -11 -10 -10 -10 -8 --------- Run | Yrd Mat Min Sub Mat Machines Accessed 7 | . 3 . 1 3 Terminals 6 | . 3 . . 3 Fabricators . | . . . . . Repair Stations . | . . . . . Recycling Units . | . . . . . Scanalyzers . | . . . . . Garrison Access . | . . . . . Total Hacks 18 | . 6 . 1 11 Successful 8 | . 5 . 1 2 Failed 10 | . 1 . . 9 Catastrophic 1 | . . . . 1 Database Lockouts . | . . . . . Manual 7 | . 4 . . 3 Terminals 17 | . 6 . . 11 Fabricators . | . . . . . Repair Stations . | . . . . . Recycling Units . | . . . . . Scanalyzers . | . . . . . Garrison Access . | . . . . . Terminal Hacks 6 | . 4 . 1 1 Robot Analysis 2 | . 2 . . . Branch Access Points 1 | . . . . 1 Locate Traps 1 | . 1 . . . Zone Layout 1 | . 1 . . . Proto ID Catalog 1 | . . . 1 . Fabricator Hacks . | . . . . . Repair Station Hacks . | . . . . . Recycling Unit Hacks . | . . . . . Scanalyzer . | . . . . . Garrison Access Hacks . | . . . . . Unauthorized Hacks 2 | . 1 . . 1 Terminals 2 | . 1 . . 1 Botnet 2 | . 1 . . 1 Fabricators . | . . . . . Repair Stations . | . . . . . Recycling Units . | . . . . . Scanalyzers . | . . . . . Garrison Access . | . . . . . Data Cores Recovered . | . . . . . Used . | . . . . . Hacking Detections 5 | . 2 . . 3 Full Trace Events 1 | . . . . 1 Feedback Events . | . . . . . Feedback Blocked . | . . . . . Robot Schematics Acquired . | . . . . . Robots Built . | . . . . . Authchips . | . . . . . Time . | . . . . . Total Robot Build Rating . | . . . . . Part Schematics Acquired . | . . . . . Parts Built . | . . . . . Authchips . | . . . . . Time . | . . . . . Total Part Build Rating . | . . . . . Part Studies Acquired . | . . . . . Parts Repaired . | . . . . . Time . | . . . . . Parts Recycled . | . . . . . Recycled Matter . | . . . . . Retrieved Matter . | . . . . . Retrieved Components . | . . . . . Parts Scanalyzed . | . . . . . Part Schematics Acquired . | . . . . . Parts Damaged . | . . . . . Bothacking | -11 -10 -10 -10 -8 ------------ Run | Yrd Mat Min Sub Mat Used RIF Installer . | . . . . . Robots Hacked . | . . . . . Non-combat . | . . . . . Combat . | . . . . . Robot Hacks Applied . | . . . . . Relay Couplers Released . | . . . . . Fabnet Peak Effective % . | . . . . . Robots Rewired . | . . . . . Allies Hacked . | . . . . . Hacks Repelled . | . . . . . Allies | -11 -10 -10 -10 -8 -------- Run | Yrd Mat Min Sub Mat Total Allies . | . . . . . Largest Group . | . . . . . Highest-Rated Group . | . . . . . Highest-Rated Ally . | . . . . . Total Orders . | . . . . . Ally Attacks . | . . . . . Total Damage . | . . . . . Kills . | . . . . . Allies Corrupted . | . . . . . Allies Melted . | . . . . . Intel | -11 -10 -10 -10 -8 ------- Run | Yrd Mat Min Sub Mat Active Infowar (turns) 473 | . 90 . . 383 Optics 149 | . . . . 149 Structural 27 | . . . . 27 Seismic 90 | . 90 . . . T.N.C. 302 | . . . . 302 Robot Analysis Total 2 | . 2 . . . Derelict Logs Recovered . | . . . . . Drone Launches . | . . . . . Drone Recoveries . | . . . . . Exploration | -11 -10 -10 -10 -8 ------------- Run | Yrd Mat Min Sub Mat Turns Passed 2131 | 58 504 350 814 405 Spaces Moved 1207 | 53 244 203 513 194 Core 33 | 9 . . . 24 Treads . | . . . . . Legs . | . . . . . Wheels 1174 | 44 244 203 513 170 Hover . | . . . . . Flight . | . . . . . Fastest Speed 50 | 50 80 140 119 50 Average Speed 134 | 74 145 140 132 136 Slowest Speed 215 | 80 200 140 215 215 Overloaded Moves . | . . . . . Propulsion Burnouts . | . . . . . Robots Hopped . | . . . . . Potential Cave-ins . | . . . . . Cave-ins Triggered . | . . . . . Exploration Rate (%) 31 | 4 49 42 37 27 Regions Visited 4 Branch Regions 2 Pre-discovered Areas . | . . . . . Known Exits Taken . | . . . . . Unknown Exits Taken 4 | 1 1 1 1 . Scrap Searched . | . . . . . Spaces Dug 45 | . 16 . 29 . Terrain Destroyed 233 | . 113 4 84 32 Melee . | . . . . . Projectile 6 | . . . 3 3 AOE 227 | . 113 4 81 29 Terrain Rammed . | . . . . . Walls Destroyed . | . . . . . Machines Disabled . | . . . . . Actions | -11 -10 -10 -10 -8 --------- Run | Yrd Mat Min Sub Mat Total 1506 | 71 322 243 599 271 Wait 49 | 2 7 16 16 8 Move 1203 | 52 243 202 512 194 Hop . | . . . . . Pick Up 56 | 11 18 6 11 10 Fast Attach 2 | . . . 2 . Attach 27 | 6 5 1 2 13 Detach 2 | . 1 . . 1 Swap 25 | . 9 2 7 7 Drop 13 | . . . 12 1 Fire 129 | . 39 16 37 37 Melee . | . . . . . Ram . | . . . . . Kick . | . . . . . Crush . | . . . . . Escape Stasis . | . . . . . Rewire . | . . . . . Trap . | . . . . . Miscellaneous . | . . . . . Route ------- -11/Scrapyard -10/Materials (discovered 3 exits: [*Mat] / [*Min] / *Sub) -10/Mines (discovered 2 exits: [*Mat] / *Sub) -10/Subcaves -8/Materials History --------- Turn | Location | Event 20 | -11/Scrapyard | Discovered new exit (range 16) 59 | -11/Scrapyard | Entered Materials 253 | -10/Materials | Discovered new exit (range 15) 315 | -10/Materials | Build established: Mutant 359 | -10/Materials | Discovered new exit (range 12) 401 | -10/Materials | Lost 3 parts (1p1n1u) 553 | -10/Materials | Discovered new exit (range 8) 563 | -10/Materials | Entered Mines 571 | -10/Mines | Met a Derelict bent on vengeance 580 | -10/Mines | Discovered new exit (range 7) 867 | -10/Mines | Received a Rocket Launcher from a helpful Derelict 906 | -10/Mines | Discovered new exit (range 4) 913 | -10/Mines | Entered Subcaves 1097 | -10/Subcaves | Visited 4L-MR0's lab 1182 | -10/Subcaves | Core integrity fell below 50% 1548 | -10/Subcaves | Shifting Twisted Machinery released Hvy. Battle Rifle 1550 | -10/Subcaves | Shifting Twisted Machinery released Sub. Monowheel 1600 | -10/Subcaves | Core integrity fell below 20% 1671 | -10/Subcaves | Discovered new exit (range 8) 1727 | -10/Subcaves | Entered Materials 1727 | -8/Materials | Evolved 4 slots: Utility x3, Weapon x1 1941 | -8/Materials | Destroyed 8 combat bots 2031 | -8/Materials | Lost 3 parts (1n1u1w) 2035 | -8/Materials | Build established: Scavenger-Skirmisher 2092 | -8/Materials | Core integrity fell below 50% 2113 | -8/Materials | Released all parts (6) 2118 | -8/Materials | Core integrity fell below 20% 2132 | -8/Materials | Destroyed by G-47 Trooper with Particle Gun Last Messages --------------- 02106_ U-05 Engineer lays Concrete. 02110_ U-05 Engineer builds a Wall. 02111_ Imp. Heat Sink destroyed. 02112_ Battle Cannon destroyed. 02113_ Slug penetrates Wall. 02113_ Released Hpw. Shotgun. 02113_ Released Heat Sink. 02113_ Released Huge Storage Unit. 02113_ Released Transport Network Coupler. 02113_ Released Hacking Suite. 02113_ Released Lgt. Treads. 02114_ G-47 Trooper IFF system glitched. 02117_ Knocked back. 02117_ Connecting with Terminal... 02117_ ALERT: Suspicious activity at Terminal M011. Dispatching Investigation squad. 02117_ Acquired 5 matter. 02127_ Slug penetrates Wall. 02128_ Penetrated by Slug. 02132_ U-05 Engineer lays Concrete. Map ----- +----------------------------------------------------+ | ???????????????????????????????????????? | | ???????????????????????????????????????? | | ???????????????????????????????????????? | | ???????????????????????????????????????? | | ???????????????????????????????????????? | | ???????????????????????????????????????? | | ????????????????????????## ??????????? | | ????????????????????????## ??????????? | | ????????????????????????## ??????????? | | ????????????????????????## ??????????? | | ????????????????????????## ??????????? | | ????????????????????????## ??????????? | | ???????????????????????? # ?????? ???? | | ???????????????????????? # #????? ???? | | ???????????????????????? # #????? ???? | | ???????????????????????? + + "" #### | | ???????????????????????? # ########### | | ??????????????##### # ## | | ?????????????############# ## = = | | ????????????? ! # = | | ????????????? o # "" | | ?????????????? " % u/=[ "" | | ?????????????? T # "" | | ??????????????#! # | | ????###########% ## = | | ????# #@ ########+## | | ????# !; % u##|#=# | | ????# # %| ##?### | | ????# ;g ! "#???# | | ????# # % T#???# | | ????# ;g *! #???#% | | ????# ; !!% ##???###### | | ????# =#g==!]= ##????????? | | ????#####;##### !![[! ! ?????? | | ????????# #### ==![ ?????? | | ????????# %T## [! ""??????? | | ????????# "???????? | | ????????# "???????? | | ????????# # # ???????? | | ????????# #?????????? | | ????????# H # ????????? | | ????????# # ????????# | | ????????# % #? ????????# | | ????????#+###########" +?? ?????????# | | ?????????????????????# #??? ?????????# | | ?????????????????????? %#??????????????# | | ?????????????????????? #??????????????# | | ???????????????????????%#??????????????# | | ???????????????????????????????????????# | | ???????????????????????????????????????? | +----------------------------------------------------+ Best States ------------- Heat Dissipation 55 Energy Generation 15 Energy Capacity 200 Matter Stores 300 Matter Capacity 300 Sight Range 21 Terrain Scan Density 10 Evasion (%) 50 Targeting Accuracy 5 Recoil Reduction 1 Offensive Hacking 10 Item Schematics ----------------- None Robot Schematics ------------------ None Fabricated ------------ Nothing Repaired ---------- Nothing Studied --------- None Alien Tech Used ----------------- None Achievements -------------- Do Not Disturb Mistaken Identity Resistances Are Futile Challenges ------------ None Game ------ Seed AssaultOvertunedDissipator Manual? 0 Play Time 00:25:45 Cumulative 308.2 hours Start 2025.10.29 @ 07:10:47 End 2025.10.29 @ 07:34:11 Sessions 1 Manual Loads 0 Difficulty Rogue Special Mode None Game No. 237 Rogue 228 Adventurer 9 Explorer 0 Win Type - Total 3 Types 2/0/0/1/0/0/0/0/0/0 Lore% 86 Gallery% 74 Achievement% 44 Wizard Run 0 Options --------- Layout 1 ASCII 0 Keyboard 0 Movement Mouse Keybinds 0 Fullscreen 1 Font 24/Smallcaps Map View 50x35 Zoom Use 0% Tactical HUD 1 Map Filters NONE Filters NONE Steam 1 RUN: 5b030aba-59fe-4e33-b8fd-d180393abd6f